fUSD/lending_fUSD_20260313
["ID","MTS","AMOUNT","RATE_DAILY","PERIOD"]
[408298299,1773381034417,-1084.34048586,0.0001907,2]
[408298300,1773381034427,-1008.65011163,0.0001907,2]
[408298301,1773381034436,-1142.83942768,0.0001907,2]
[408298302,1773381034445,-1101.30768752,0.0001907,2]
[408298303,1773381034454,-1025.67586881,0.0001907,2]
[408298304,1773381034464,-151.0,0.0001907,2]
[408298305,1773381034473,-500.0,0.00019177,2]
[408298306,1773381034484,-502.07751418,0.00019177,2]
[408298307,1773381034493,-188.138176,0.00019178,2]
[408298308,1773381034503,-151.0,0.00019178,2]
[408298309,1773381034516,-341.438011,0.00019178,2]
[408298310,1773381034525,-341.438011,0.00019178,2]
[408298311,1773381034534,-341.438011,0.00019178,2]
[408298312,1773381034545,-341.438011,0.00019178,2]
[408298313,1773381034554,-1000.0,0.00019178,2]
[408298314,1773381034563,-2000.0,0.000192,2]
[408298315,1773381034573,-1197.36008746,0.00019246,2]
[408298316,1773381034584,-168.0,0.00019271,2]
[408298317,1773381034594,-168.0,0.0001936,2]
[408298318,1773381034603,-3289.34623511,0.00019391,2]
[408298319,1773381034612,-11018.30293556,0.00019397,2]
[408298320,1773381034622,-1000.0,0.00019452,2]
[408298321,1773381034631,-17.68369396,0.00019459,2]
[408298322,1773381034640,-1141.12979147,0.00019459,2]
[408298323,1773381034649,-1000.21820681,0.00019459,2]
[408298324,1773381034658,-4099.16729729,0.000195,2]
[408298325,1773381034667,-168.0,0.00019568,2]
[408298326,1773381034677,-1283.58135346,0.000196,2]
[408298327,1773381034686,-509.0,0.00019625,4]
[408298328,1773381034696,-1599.27768829,0.000197,2]
[408298329,1773381034706,-616.0,0.00019702,2]
[408298330,1773381034715,-1000.0,0.00019726,2]
[408298331,1773381034724,-2000.0,0.000198,2]
[408298332,1773381034733,-3292.0,0.00019831,2]
[408298333,1773381034742,-547.21007083,0.00019899,2]
[408298334,1773381034751,-500.0,0.00019899,2]
[408298335,1773381034760,-500.0,0.00019899,2]
[408298336,1773381034769,-500.0,0.00019899,2]
[408298337,1773381034778,-500.0,0.00019899,2]
[408298338,1773381034787,-500.0,0.00019899,2]
[408298339,1773381034797,-500.0,0.00019899,2]
[408298340,1773381034805,-517.26041223,0.00019899,2]
[408298341,1773381034814,-500.0,0.00019899,2]
[408298342,1773381034824,-514.33170508,0.00019899,2]
[408298343,1773381034833,-500.0,0.00019899,2]
[408298344,1773381034841,-391.18471187,0.00019899,2]
[408298345,1773381034850,-500.0,0.00019899,2]
[408298346,1773381034859,-500.0,0.00019899,2]
[408298347,1773381034870,-500.0,0.00019899,2]
[408298348,1773381034880,-500.0,0.00019899,2]
[408298349,1773381034890,-500.0,0.00019899,2]
[408298350,1773381034901,-4033.22648184,0.000199,3]
[408298351,1773381034912,-171.68297946,0.000199,2]
[408298352,1773381034921,-1197.36008746,0.000199,2]
[408298353,1773381034933,-3289.34623511,0.000199,2]
[408298354,1773381034943,-714.44226736,0.000199,2]
[408298355,1773381034952,-160.61307676,0.000199,2]
[408298356,1773381034964,-6439.16762207,0.000199,2]
[408298357,1773381034975,-3114.89623725,0.000199,2]
[408298358,1773381034990,-2171.79258427,0.000199,2]
[408298359,1773381037619,-250.0,0.00015,2]
[408298360,1773381037629,-225.2949715,0.00015321,2]
[408298361,1773381037642,-434.43336393,0.00015321,2]
[408298362,1773381037655,-831.3177823,0.00015321,2]
[408298363,1773381037667,-312.02276897,0.00015321,2]
[408298364,1773381037680,-197371.28870193,0.00015321,2]
[408298365,1773381037692,-35769.39771992,0.00015321,2]
[408298366,1773381037733,-444.76004398,0.00015321,2]
[408298367,1773381037744,-373.76038049,0.00015321,2]
[408298368,1773381037757,-10872.26460037,0.00015321,2]
[408298382,1773381039932,-845.39777926,0.00015321,2]
[408298389,1773381044913,-14530.94020446,0.00015321,2]
[408298404,1773381045771,-248453.66823234,0.00015321,2]
[408298406,1773381045900,-902.4970347,0.00015321,2]
[408298407,1773381045915,-117319.95695576,0.00015321,2]
[408298408,1773381045929,-533.735331,0.00015321,2]
[408298410,1773381046504,-1647.80763695,0.00015321,2]
[408298413,1773381713111,-162.0,0.000139,2]
[408298416,1773381866633,-1641.98701459,0.0003,120]
[408298417,1773381866660,-187.49,0.00030411,120]
[408298418,1773381866687,-1859.5,0.00032,120]
[408298419,1773381866713,-500.0,0.00032024,120]
[408298420,1773381866747,-500.0,0.00032024,120]
[408298421,1773381866782,-500.0,0.00032024,120]
[408298422,1773381866807,-500.0,0.00032024,120]
[408298423,1773381866831,-165.57766525,0.00032024,120]
[408298424,1773381866856,-500.0,0.00032024,120]
[408298425,1773381866883,-500.0,0.00032024,120]
[408298426,1773381866908,-500.0,0.00032024,120]
[408298427,1773381867158,-500.0,0.00032024,120]
[408298428,1773381867184,-500.0,0.00032024,120]
[408298429,1773381867214,-500.0,0.00032024,120]
[408298430,1773381867239,-500.0,0.00032024,120]
[408298431,1773381867264,-500.0,0.00032024,120]
[408298432,1773381867290,-500.0,0.00032024,120]
[408298433,1773381867314,-500.0,0.00032024,120]
[408298434,1773381867339,-500.0,0.00032024,120]
[408298435,1773381867363,-500.0,0.00032024,120]
[408298436,1773381867388,-500.0,0.00032024,120]
[408298437,1773381867413,-416.83975608,0.00032024,120]
[408298438,1773381872496,565.39139094,0.00032876,120]
[408298439,1773381891043,-500.0,0.00047821,120]
[408298440,1773381891078,-9196.0144526,0.00047821,120]
[408298441,1773381891107,-30651.39260898,0.00047821,120]
[408298442,1773381891132,-19652.59293842,0.00047821,45]
[408298443,1773381907525,-50284.40706158,0.00047821,45]
[408298444,1773381907551,-1003.49710246,0.00047821,120]
[408298445,1773381907575,-256.5,0.00047821,30]
[408298446,1773381907600,-179.08,0.00047821,120]
[408298447,1773381907628,-1512.97,0.00047821,120]
[408298448,1773381907656,-5000.0,0.00047821,30]
[408298449,1773381907682,-25008.0,0.00047821,120]
[408298450,1773381907709,-2663.82000579,0.00047821,120]
[408298451,1773381907735,-173.39638857,0.00047821,120]
[408298452,1773381907766,-281.90555801,0.00047821,120]
[408298453,1773381907792,-303.20418148,0.00047821,60]
[408298454,1773381907817,-162.72315938,0.00047821,30]
[408298455,1773381907841,-1207.37597906,0.00047821,60]
[408298456,1773381907866,-700.87264205,0.00047821,90]
[408298457,1773381907891,-251.30478334,0.00047821,30]
[408298458,1773381907920,-172.55485305,0.00047821,120]
[408298459,1773381907945,-292.80352522,0.00047821,30]
[408298460,1773381907970,-160.22022085,0.00047821,120]
[408298461,1773381907994,-176.0864443,0.00047821,120]
[408298462,1773381908019,-314.32031867,0.00047821,120]
[408298463,1773381908043,-206.50913107,0.00047821,90]
[408298464,1773381908068,-326.76048309,0.00047821,120]
[408298465,1773381908092,-184.26401726,0.00047821,60]
[408298466,1773381908117,-588.47139973,0.00047821,120]
[408298467,1773381908145,-742.61177063,0.00047821,30]
[408298468,1773381908169,-847.96701044,0.00047821,120]
[408298469,1773381908193,-536076.87895776,0.00047821,30]
[408298470,1773381908218,-963.34585908,0.00047821,31]
[408298471,1773381908242,-15433.05404266,0.00047821,120]
[408298472,1773381908267,-1934.2976881,0.00047821,30]
[408298473,1773381908290,-169.25454884,0.00047821,120]
[408298474,1773381908515,-208.60517838,0.00047821,120]
[408298475,1773381908542,-4848.64333594,0.00047821,30]
[408298476,1773381908569,-270.16537046,0.00047821,120]
[408298477,1773381908594,-4163.28146115,0.00047821,30]
[408298478,1773381908619,-1769.50913179,0.00047821,120]
[408298479,1773381908644,-295.44290053,0.00047821,30]
[408298480,1773381908670,-3427.71875694,0.00047821,30]
[408298481,1773381908695,-184.56298725,0.00047821,30]
[408298482,1773381908719,-258.06119494,0.00047821,120]
[408298483,1773381908745,-318.52098824,0.00047821,120]
[408298484,1773381908772,-1642.17977993,0.00047821,30]
[408298485,1773381908798,-152.72870203,0.00047821,120]
[408298486,1773381908823,-156.16809462,0.00047821,30]
[408298487,1773381908847,-919.20337758,0.00047821,30]
[408298488,1773381908871,-605.89445299,0.00047821,30]
[408298489,1773381908896,-537.92093958,0.00047821,120]
[408298490,1773381908920,-1226.02125677,0.00047821,60]
[408298491,1773381908945,-468.00473583,0.00047821,120]
[408298492,1773381908984,-16100.0,0.00047821,30]
[408298493,1773381909013,-5000.0,0.00047821,120]
[408298494,1773381909040,-1000.0,0.00047821,30]
[408298495,1773381909067,-3468.82174564,0.00047821,60]
[408298496,1773381909094,-1131.74508113,0.00047821,120]
[408298497,1773381909119,-101426.72542462,0.00047821,30]
[408298498,1773381909145,-1000000.0,0.00047821,30]
[408298499,1773381909171,-299.07691385,0.00047821,120]
[408298500,1773381909196,-549.59746256,0.00047821,120]
[408298501,1773381909221,-10008.999999,0.00047821,120]
[408298502,1773381909247,-200000.0,0.00047821,30]
[408298503,1773381909272,-917.09899474,0.00047821,120]
[408298504,1773381909298,-429.56383223,0.00047821,120]
[408298505,1773381909324,-60000.0,0.00047821,30]
[408298506,1773381909349,-185.8262319,0.00047821,120]
[408298507,1773381909374,-146000.0,0.00047821,120]
[408298508,1773381909403,-2000.0,0.00047821,120]
[408298509,1773381909431,-1034.95244903,0.00047821,120]
[408298510,1773381909460,-511.33725597,0.00047821,120]
[408298511,1773381909486,-200.0,0.00047821,120]
[408298512,1773381909513,-262.393807,0.00047821,120]
[408298513,1773381909539,-1276.04871622,0.00047821,120]
[408298514,1773381909564,-400.0,0.00047821,90]
[408298515,1773381909786,429.02534882,0.00047821,90]
[408298516,1773381912773,166.66,0.00013517,2]
[408298517,1773381913111,166.66,0.00013801,2]
[408298518,1773381914051,268.69748994,0.00047821,30]
[408298519,1773382098013,10000.0,0.00032877,120]
[408298520,1773382104769,10000.0,0.00032877,120]
[408298522,1773382107938,150.0,0.00013893,2]
[408298523,1773382110362,10000.0,0.00032877,120]
[408298524,1773382116865,10000.0,0.00032877,120]
[408298525,1773382122753,10000.0,0.00032877,120]
[408298526,1773382127881,200.0,0.00013817,2]
[408298527,1773382128178,10000.0,0.00032877,120]
[408298528,1773382134705,10000.0,0.00032877,120]
[408298529,1773382135668,985.49,0.00013753,2]
[408298530,1773382140798,10000.0,0.00032877,120]
[408298531,1773382146943,10000.0,0.00032877,120]
[408298532,1773382154692,10000.0,0.00032877,120]
[408298533,1773382161319,10000.0,0.00032877,120]
[408298534,1773382161350,30000.0,0.000328,120]
[408298535,1773382170931,10000.0,0.00032877,120]
[408298536,1773382176763,10000.0,0.00032877,120]
[408298537,1773382182588,10000.0,0.00032877,120]
[408298538,1773382189027,10000.0,0.00032877,120]
[408298539,1773382195095,10000.0,0.00032877,120]
[408298540,1773382201544,10000.0,0.00032877,120]
[408298544,1773382209088,10000.0,0.00032877,120]
[408298545,1773382218346,10000.0,0.00032877,120]
[408298546,1773382225421,10000.0,0.00032877,120]
[408298547,1773382231658,-166.66,0.00014086,2]
[408298548,1773382231669,-250.0,0.00014155,2]
[408298550,1773382231678,-259.18670744,0.00014209,2]
[408298552,1773382231688,-2000.0,0.00014224,2]
[408298554,1773382231698,-802.491,0.00014309,2]
[408298556,1773382231707,-188.67257488,0.00014309,2]
[408298558,1773382231716,-259.18670743,0.00014332,2]
[408298559,1773382231726,-166.66,0.00014371,2]
[408298560,1773382231735,-259.18670743,0.00014455,2]
[408298561,1773382231744,-381.495426,0.0001446,7]
[408298562,1773382231754,-300.0,0.00014499,2]
[408298563,1773382231763,-1200.0,0.00014499,2]
[408298564,1773382231778,-300.0,0.000145,2]
[408298565,1773382231788,-150.0,0.000145,2]
[408298566,1773382231798,-500.0,0.000145,2]
[408298567,1773382231808,-500.0,0.000145,2]
[408298568,1773382231821,-500.0,0.000145,2]
[408298569,1773382231831,-201931.13536506,0.00014501,2]
[408298570,1773382231843,-146197.32724444,0.00014501,2]
[408298571,1773382231855,-144090.5769905,0.00014501,2]
[408298572,1773382231865,-170.17462717,0.00014585,2]
[408298573,1773382231874,-268.49841628,0.00014591,2]
[408298574,1773382231884,-188.67257488,0.00014599,2]
[408298575,1773382231894,-380.26098757,0.000146,2]
[408298577,1773382231903,-500.0,0.000146,2]
[408298579,1773382231913,-257.49240069,0.000146,2]
[408298581,1773382231922,-500.0,0.000146,2]
[408298583,1773382231931,-362.84519833,0.000146,2]
[408298585,1773382231940,-150.99,0.000146,2]
[408298587,1773382231949,-516.89,0.000146,2]
[408298588,1773382231959,-9606.44257846,0.000146,2]
[408298591,1773382231970,-393.54742154,0.000146,2]
[408298593,1773382231983,-150.99,0.000146,2]
[408298596,1773382231992,-9999.99,0.000146,2]
[408298599,1773382232002,-417.18,0.000146,2]
[408298600,1773382232011,-999.99,0.000146,2]
[408298601,1773382232020,-91997.69816067,0.00014601,2]
[408298602,1773382232039,-1008.75000001,0.00014601,2]
[408298603,1773382232051,-4647.3626211,0.00014601,2]
[408298604,1773382232067,-3577.1485852,0.00014601,2]
[408298605,1773382232170,10000.0,0.00032877,120]
[408298606,1773382237778,-315.09654098,0.00014601,2]
[408298607,1773382237791,-322.0,0.00014601,2]
[408298609,1773382237890,-71500.00000002,0.00014601,2]
[408298610,1773382240092,-33359.44649942,0.00014601,2]
[408298611,1773382240241,10000.0,0.00032877,120]
[408298614,1773382243167,-60812.1358,0.00014401,2]
[408298615,1773382243178,-166.66,0.00014655,2]
[408298616,1773382243188,-500.0,0.00014673,2]
[408298617,1773382243197,-500.0,0.00014673,2]
[408298618,1773382243207,-514.91409744,0.00014673,2]
[408298619,1773382243216,-10230.25,0.00014685,2]
[408298620,1773382243225,-388.74168792,0.00014899,2]
[408298621,1773382243235,-249.00586568,0.00014908,2]
[408298622,1773382243244,-166.66,0.0001494,2]
[408298623,1773382243253,-1424.64131931,0.00015,2]
[408298624,1773382243262,-8025.57749208,0.00015,2]
[408298625,1773382243272,-160.0,0.00015,2]
[408298626,1773382243281,-1495.26,0.00015029,2]
[408298627,1773382243291,-150.0,0.00015116,2]
[408298628,1773382243300,-1499.39748726,0.0001522,2]
[408298629,1773382243309,-501.57053664,0.00015221,2]
[408298630,1773382243318,-500.0,0.00015221,2]
[408298631,1773382243328,-1000.0,0.00015221,2]
[408298632,1773382243337,-1697.56,0.00015406,2]
[408298633,1773382243346,-250.0,0.00015495,2]
[408298634,1773382243356,-250.0,0.00015495,2]
[408298635,1773382243366,-300.5159349,0.00015495,2]
[408298636,1773382243375,-5000.0,0.00015495,2]
[408298637,1773382243384,-600.0,0.00015495,2]
[408298638,1773382243397,-255.0,0.00015617,2]
[408298639,1773382243407,-5998.0,0.00015702,2]
[408298640,1773382243416,-414.0,0.00015702,2]
[408298642,1773382243425,-2463.0,0.00015702,2]
[408298643,1773382243435,-1043.0,0.00015816,2]
[408298644,1773382243445,-1343.0,0.00015816,2]
[408298645,1773382243454,-620.0,0.00015816,2]
[408298646,1773382243464,-420.0,0.00015877,2]
[408298647,1773382243473,-159.0,0.00015878,2]
[408298648,1773382243482,-3027.6,0.00015945,2]
[408298649,1773382243492,-1680.0,0.00015949,2]
[408298650,1773382243501,-2000.0,0.00016001,2]
[408298651,1773382243510,-5000.00316611,0.000162,5]
[408298652,1773382243520,-178.38,0.00016314,2]
[408298653,1773382243530,-1755.94,0.00016606,2]
[408298654,1773382243540,-500.0,0.00016767,2]
[408298655,1773382243550,-498.13,0.000168,7]
[408298656,1773382243559,-150.0,0.0001682,2]
[408298657,1773382243569,-300.0,0.00017,2]
[408298658,1773382243578,-42828.56906791,0.00017,2]
[408298659,1773382243588,-160.0,0.0001724,2]
[408298660,1773382243602,-1000.0,0.00017315,2]
[408298661,1773382243611,-1002.0,0.00017315,2]
[408298662,1773382243621,-500.3680898,0.0001738,2]
[408298663,1773382243630,-621.90362035,0.0001738,2]
[408298664,1773382243640,-500.0,0.0001738,2]
[408298665,1773382243649,-587.0,0.00017385,2]
[408298666,1773382243658,-3240.0,0.00017431,2]
[408298667,1773382243668,-283.80602919,0.00017471,2]
[408298668,1773382243678,-161.62483646,0.00017471,2]
[408298669,1773382243687,-500.0,0.00017471,2]
[408298670,1773382243696,-2351.0,0.00017544,2]
[408298671,1773382243706,-786.98,0.00017603,2]
[408298672,1773382243717,-254.25106058,0.00017644,2]
[408298673,1773382243726,-150.0,0.00017644,2]
[408298674,1773382243736,-204.89621627,0.00017644,2]
[408298675,1773382243746,-254.71123729,0.00017644,2]
[408298676,1773382243755,-250.0,0.00017644,2]
[408298677,1773382243765,-155.6604187,0.00017644,2]
[408298678,1773382243775,-150.0,0.00017644,2]
[408298679,1773382243785,-500.58413538,0.0001765,2]
[408298680,1773382243795,-200.0,0.00017699,2]
[408298681,1773382243805,-786.94121111,0.000177,2]
[408298682,1773382243815,-2000.0,0.00017779,2]
[408298683,1773382243830,-1007.56419803,0.0001786,2]
[408298684,1773382243839,-502.204028,0.00017863,2]
[408298685,1773382243849,-1229.37027411,0.0001789,2]
[408298686,1773382243859,-1077.2668438,0.0001789,2]
[408298687,1773382243870,-500.0,0.00017967,2]
[408298688,1773382243880,-164.27758766,0.00017967,2]
[408298689,1773382243893,-164.50203341,0.00017967,2]
[408298690,1773382243903,-500.0,0.00017967,2]
[408298691,1773382243913,-161.38631467,0.00017967,2]
[408298692,1773382243923,-500.0,0.00017967,2]
[408298693,1773382243933,-503.41003758,0.00017978,2]
[408298694,1773382243943,-500.0,0.00017978,2]
[408298695,1773382243953,-168.20058282,0.00017978,2]
[408298696,1773382243963,-514.20022572,0.00017978,2]
[408298697,1773382243976,-500.0,0.00017978,2]
[408298698,1773382243986,-500.0,0.00017978,2]
[408298699,1773382243997,-500.0,0.00017978,2]
[408298700,1773382244007,-502.13724083,0.00017978,2]
[408298701,1773382244016,-500.0,0.00017978,2]
[408298702,1773382244027,-500.0,0.00017978,2]
[408298703,1773382244036,-500.0,0.00018,2]
[408298704,1773382244046,-66605.54167397,0.00018,2]
[408298708,1773382247875,10000.0,0.00032877,120]
[408298709,1773382254186,10000.0,0.00032877,120]
[408298710,1773382254576,309.5,0.000132,30]
[408298711,1773382260212,10000.0,0.00032877,120]
[408298712,1773382267837,10000.0,0.00032877,120]
[408298713,1773382279325,10000.0,0.00032877,120]
[408298714,1773382287351,10000.0,0.00032877,120]
[408298715,1773382294591,10000.0,0.00032877,120]
[408298716,1773382307885,311.96,0.00032877,120]
[408298717,1773382351503,565.39139094,0.00032876,120]
[408298720,1773382468138,1846.22411558,0.0003287,120]
[408298721,1773382592120,1388.0,0.00032877,120]
[408298722,1773382596997,720.38,0.00025516,120]
[408298723,1773382772809,5314.0,0.00032713,120]
[408298724,1773382811899,3170.0,0.00032877,120]
[408298725,1773382922913,3044.0,0.00032877,120]
[408298726,1773382940560,29800.0,0.00032877,120]
[408298727,1773383152611,25897.0,0.00032877,120]
[408298728,1773383154155,-150.0,0.00014301,2]
[408298729,1773383185115,187.49,0.00030411,120]
[408298734,1773383431958,-2303.22682107,0.00014301,2]
[408298746,1773383438077,-1757.91409875,0.00014301,2]
[408298747,1773383438139,-3271.00051652,0.00014301,2]
[408298748,1773383438150,-839.1446235,0.00014301,2]
[408298749,1773383438162,-3055.19137379,0.00014301,2]
[408298750,1773383438173,-1250.10055442,0.00014301,2]
[408298751,1773383438184,-1779.84163458,0.00014301,2]
[408298752,1773383438196,-4711.92720539,0.00014301,2]
[408298753,1773383438210,-860.85068214,0.00014301,2]
[408298755,1773383440337,-428.1426281,0.00014301,2]
[408298764,1773383444376,-26795.152039,0.00014301,2]
[408298765,1773383444391,-137976.69292274,0.00014301,2]
[408298766,1773383444401,-250.0,0.00014351,2]
[408298767,1773383444411,-1000.0,0.00014401,2]
[408298768,1773383444420,-1200.0,0.00014499,2]
[408298769,1773383444430,-300.0,0.00014499,2]
[408298770,1773383444440,-300.0,0.00014499,2]
[408298771,1773383444449,-84047.93680234,0.000145,2]
[408298772,1773383444459,-3163.19852988,0.000149,2]
[408298773,1773383444469,-250.0,0.00015,2]
[408298774,1773383444479,-163.498039,0.00015306,7]
[408298775,1773383444489,-3163.19852979,0.00015456,2]
[408298776,1773383444498,-250.0,0.00015732,2]
[408298777,1773383444508,-250.0,0.00015732,2]
[408298778,1773383444518,-150.99,0.0001584,2]
[408298779,1773383444530,-1488.278848,0.0001584,2]
[408298780,1773383444546,-8511.711152,0.0001584,2]
[408298781,1773383444557,-420.0,0.00015876,2]
[408298782,1773383444567,-1680.0,0.00015949,2]
[408298783,1773383444577,-3163.19852979,0.00016011,2]
[408298784,1773383444586,-3897.58,0.00016095,2]
[408298785,1773383444596,-5437.515,0.00016112,2]
[408298786,1773383444606,-2463.0,0.00016112,2]
[408298787,1773383444616,-620.0,0.00016112,2]
[408298788,1773383444626,-2000.0,0.00016319,2]
[408298789,1773383444636,-154.91,0.00016456,2]
[408298790,1773383444645,-3897.58,0.00016498,2]
[408298791,1773383444655,-3163.19852979,0.00016567,2]
[408298792,1773383444664,-166.64,0.00016712,2]
[408298793,1773383444674,-3897.58,0.000169,2]
[408298794,1773383444684,-720.38,0.00017011,2]
[408298795,1773383444694,-448.32,0.000171,7]
[408298796,1773383444703,-3163.19852979,0.00017122,2]
[408298797,1773383444713,-3897.58,0.00017302,2]
[408298798,1773383444722,-587.0,0.00017385,2]
[408298799,1773383444731,-260.31902507,0.0001748,2]
[408298800,1773383444742,-154.91,0.00017485,2]
[408298801,1773383444751,-2351.0,0.00017544,2]
[408298802,1773383444761,-150.0,0.00017644,2]
[408298803,1773383444772,-250.0,0.00017644,2]
[408298804,1773383444782,-3163.19852979,0.00017678,2]
[408298805,1773383444791,-150.0,0.00017699,2]
[408298806,1773383444803,-3897.58,0.00017705,2]
[408298807,1773383444812,-3995.87481013,0.000178,2]
[408298808,1773383444822,-170.17462717,0.000178,2]
[408298809,1773383444831,-598.6800438,0.000178,2]
[408298810,1773383444841,-534.16526761,0.00017873,2]
[408298811,1773383444850,-500.0,0.00017873,2]
[408298813,1773383444859,-500.48084924,0.00017873,2]
[408298815,1773383444870,-500.0,0.00017873,2]
[408298817,1773383444879,-500.0,0.00017873,2]
[408298819,1773383444889,-501.29710609,0.00017873,2]
[408298821,1773383444898,-501.13386754,0.00017873,2]
[408298823,1773383444908,-500.6315651,0.00017873,2]
[408298824,1773383444917,-500.0,0.00017873,2]
[408298825,1773383444927,-500.98785428,0.00017873,2]
[408298826,1773383444937,-500.0,0.00017873,2]
[408298827,1773383444946,-500.0,0.00017873,2]
[408298828,1773383444955,-500.0,0.00017873,2]
[408298829,1773383444965,-500.0,0.00017873,2]
[408298830,1773383444975,-178.99894419,0.0001789,2]
[408298831,1773383444984,-500.0,0.00017899,2]
[408298832,1773383444994,-500.0,0.00017899,2]
[408298833,1773383445004,-500.0,0.00017899,2]
[408298834,1773383445013,-500.0,0.00017899,2]
[408298835,1773383445023,-165.57766525,0.00017899,2]
[408298836,1773383445032,-500.0,0.00017899,2]
[408298837,1773383445041,-500.0,0.00017899,2]
[408298838,1773383445051,-500.0,0.00017899,2]
[408298839,1773383445060,-500.0,0.00017899,2]
[408298840,1773383445070,-500.0,0.00017899,2]
[408298841,1773383445079,-500.0,0.00017899,2]
[408298842,1773383445088,-500.0,0.00017899,2]
[408298843,1773383445097,-500.0,0.00017899,2]
[408298844,1773383445106,-300.0,0.00017899,2]
[408298845,1773383445116,-266.1826913,0.00017899,2]
[408298846,1773383445125,-500.0,0.00017899,2]
[408298847,1773383445135,-500.0,0.00017899,2]
[408298848,1773383445144,-590.51169541,0.00017899,2]
[408298849,1773383445153,-500.0,0.00017899,2]
[408298850,1773383445163,-500.0,0.00017899,2]
[408298851,1773383445174,-500.0,0.00017899,2]
[408298852,1773383445184,-500.0,0.00017899,2]
[408298853,1773383445194,-500.0,0.00017899,2]
[408298854,1773383445206,-500.0,0.00017899,2]
[408298855,1773383445216,-500.0,0.00017899,2]
[408298856,1773383445226,-500.0,0.00017899,2]
[408298857,1773383445235,-500.0,0.00017899,2]
[408298858,1773383445246,-500.0,0.00017899,2]
[408298859,1773383445255,-180.24468048,0.00017899,2]
[408298860,1773383445264,-500.0,0.00017899,2]
[408298861,1773383445275,-453.99163884,0.00017899,2]
[408298862,1773383445284,-10553.63619951,0.000179,2]
[408298863,1773383445324,-5371.84193516,0.000179,2]
[408298864,1773383445336,-14313.06973075,0.000179,2]
[408298868,1773383445981,-3629.98681558,0.000179,2]
[408298869,1773383446321,-1298.97054013,0.000179,2]
[408298880,1773383571962,500.0,0.0003287,120]
[408298882,1773383987708,-1200.0,0.000143,2]
[408298883,1773383987732,-246.0,0.000143,2]
[408298884,1773383987756,-300.0,0.000143,2]
[408298885,1773383987780,-250.0,0.00014301,2]
[408298886,1773384001434,1200.0,0.000143,2]
[408298887,1773384004116,-18179.8874,0.00014301,2]
[408298888,1773384004140,-1000.0,0.00014301,2]
[408298889,1773384004163,-4771.9916,0.00014301,2]
[408298890,1773384004187,-14471.121,0.00014301,2]
[408298892,1773384041384,228.0,0.00032877,120]
[408298894,1773384366434,-1200.0,0.00014199,2]
[408298895,1773384366464,-176.74348528,0.000142,2]
[408298896,1773384366487,-500.0,0.000142,2]
[408298897,1773384366513,-282.48179823,0.000142,2]
[408298898,1773384366538,-500.0,0.000142,2]
[408298899,1773384366564,-485.97152828,0.000142,2]
[408298900,1773384366587,-500.0,0.000142,2]
[408298901,1773384366612,-500.0,0.000142,2]
[408298902,1773384366639,-500.0,0.000142,2]
[408298903,1773384366661,-500.0,0.000142,2]
[408298904,1773384366683,-500.0,0.000142,2]
[408298905,1773384366710,-500.0,0.000142,2]
[408298906,1773384366733,-500.0,0.000142,2]
[408298907,1773384366755,-160.42964309,0.000142,2]
[408298908,1773384366783,-500.0,0.000142,2]
[408298909,1773384366811,-500.0,0.000142,2]
[408298910,1773384366838,-500.0,0.000142,2]
[408298911,1773384366861,-500.0,0.000142,2]
[408298912,1773384366884,-500.0,0.000142,2]
[408298913,1773384366910,-500.0,0.000142,2]
[408298914,1773384366933,-194.37354512,0.000142,2]